bitfinex-derivatives/quotes_ETHF0:USTF0_20251116
["timestamp","ask_amount","ask_price","bid_price","bid_amount"]
[1763258737765,0.1689,3146.1,3145.7,3.2078]
[1763258738063,0.85134596,3146.2,3145.7,3.4451]
[1763258738266,0.1689,3146.1,3146.0,0.3823]
[1763258738671,0.1689,3145.8,3145.7,3.2078]
[1763258738971,0.85134596,3146.2,3145.7,3.4451]
[1763258739171,1.02024596,3146.1,3146.0,0.145]
[1763258739464,0.1689,3146.1,3146.0,0.3823]
[1763258740161,1.30487189,3146.1,3146.0,0.3823]
[1763258740360,1.30487189,3146.1,3145.7,3.4451]
[1763258740361,0.1689,3145.8,3145.7,3.4451]
[1763258740561,0.1689,3145.8,3145.7,3.2078]
[1763258740868,0.852496,3145.9,3145.8,0.2373]
[1763258741069,0.852496,3145.9,3145.7,3.2078]
[1763258741070,0.1689,3145.8,3145.7,3.2078]
[1763258741268,1.02186267,3145.8,3145.7,3.2078]
[1763258741863,1.02186267,3145.8,3145.7,3.4451]
[1763258742665,0.85296267,3145.9,3145.8,0.2373]
[1763258744964,0.85296267,3146.0,3145.9,0.2373]
[1763258745164,1.13597189,3146.5,3146.4,0.2373]
[1763258745473,4.91005453,3146.6,3146.5,0.3823]
[1763258746073,3.3767,3146.6,3146.5,0.3823]
[1763258746274,5.07895453,3146.6,3146.5,0.3823]
[1763258746476,4.91005453,3146.6,3146.5,0.3823]
[1763258746670,0.00476455,3146.7,3146.6,0.2373]
[1763258746872,0.1689,3146.6,3146.0,0.145]
[1763258747074,1.13770017,3146.5,3146.0,0.145]
[1763258747572,4.34550017,3146.6,3146.0,3.3528]
[1763258747775,1.13770017,3146.5,3146.0,3.3528]
[1763258748075,4.34550017,3146.6,3146.0,3.3528]
[1763258748270,1.13770017,3146.5,3146.0,3.3528]
[1763258748771,1.30660017,3146.5,3146.0,3.3528]
[1763258748968,1.13770017,3146.4,3146.0,3.3528]
[1763258749372,1.30660017,3146.4,3146.3,0.2373]
[1763258749675,0.1689,3146.1,3146.0,3.5901]
[1763258749875,1.13770017,3146.4,3146.0,3.5901]
[1763258750375,1.30660017,3146.4,3146.3,0.2373]
[1763258751169,1.13770017,3146.4,3146.3,0.2373]
[1763258751573,1.30660017,3146.4,3146.3,0.2373]
[1763258751875,0.1689,3146.1,3146.0,3.5901]
[1763258752276,1.13770017,3146.4,3146.0,3.5901]
[1763258753279,1.13770017,3146.5,3146.0,3.5901]
[1763258753678,1.13770017,3146.5,3146.1,3.2078]
[1763258753880,1.30660017,3146.5,3146.4,0.2373]
[1763258754678,1.30660017,3146.5,3146.1,3.2078]
[1763258755380,0.1689,3146.2,3146.1,0.2373]
[1763258756583,0.1689,3146.4,3146.3,0.2373]
[1763258757783,1.13770017,3146.5,3146.4,0.2373]
[1763258758174,1.30660017,3146.5,3146.4,0.2373]
[1763258758776,0.1689,3146.5,3146.4,0.2373]
[1763258759473,0.1689,3146.5,3146.4,0.2474]
[1763258760187,0.1689,3146.5,3146.1,3.2078]
[1763258760379,0.1689,3146.5,3146.4,0.2474]
[1763258760578,1.13770017,3146.6,3146.5,0.3851]
[1763258760887,1.14246472,3146.7,3146.6,0.2474]
[1763258761080,1.31156472,3146.7,3146.6,0.2474]
[1763258761281,0.1691,3145.6,3145.4,1.13782508]
[1763258761481,0.1691,3145.6,3144.9,2.28357162]
[1763258761482,0.2473,3145.1,3144.9,0.00476455]
[1763258761781,18.6568,3145.6,3144.9,0.00476455]
[1763258761978,0.2473,3145.1,3145.0,0.3967]
[1763258762183,0.2473,3145.1,3145.0,0.1493]
[1763258762380,0.2473,3145.1,3145.0,0.40082155]
[1763258766288,3.4551,3145.1,3145.0,0.00412155]
[1763258766579,0.2473,3144.6,3144.2,3.2078]
[1763258766884,3.2078,3144.5,3144.2,0.2474]
[1763258767077,3.4551,3144.5,3144.4,0.2474]
[1763258767278,3.4551,3144.5,3143.7,3.23961016]
[1763258767481,3.2109379,3144.5,3144.0,0.38806854]
[1763258768973,0.2473,3144.1,3144.0,0.38806854]
[1763258769487,3.2109379,3144.5,3144.0,0.38806854]
[1763258769884,3.4582379,3144.5,3144.4,0.2474]
[1763258770183,0.0031379,3144.5,3144.4,0.2474]
[1763258770380,0.2504379,3144.5,3144.4,0.2474]
[1763258770581,0.2504379,3144.5,3144.1,3.2078]
[1763258770786,0.2504379,3144.5,3144.4,0.2474]
[1763258771382,0.0031379,3144.5,3144.4,0.2474]
[1763258780694,0.2504379,3144.5,3144.4,0.2474]
[1763258781494,0.0031379,3144.5,3144.4,0.2474]
[1763258782595,0.2509379,3144.5,3144.4,0.2474]
[1763258785186,0.0031379,3144.5,3144.4,0.2474]
[1763258786396,0.2509379,3144.5,3144.4,0.2474]
[1763258786600,0.0031379,3144.5,3144.4,0.2474]
[1763258786895,0.2509379,3144.5,3144.4,0.2474]
[1763258789391,0.2509379,3144.5,3144.1,3.2078]
[1763258789593,0.2447,3144.1,3144.0,0.00296854]
[1763258789792,18.9055,3144.1,3144.0,0.00296854]
[1763258791603,20.04133407,3144.1,3144.0,0.00296854]
[1763258791805,0.3897,3144.0,3143.9,0.00476455]
[1763258792008,1.52400691,3144.0,3143.9,0.00476455]
[1763258792408,1.37900691,3144.0,3143.9,0.00476455]
[1763258792609,0.2447,3144.0,3143.9,0.23276455]
[1763258792907,0.2447,3144.0,3143.9,0.23543392]
[1763258793311,0.2447,3144.0,3143.9,0.00743392]
[1763258796007,18.6608,3144.1,3144.0,0.3715]
[1763258796307,3.2078,3144.1,3144.0,0.3715]
[1763258796713,3.2109379,3144.5,3144.4,0.228]
[1763258796915,3.4556379,3144.5,3144.4,0.228]
[1763258797105,3.4556379,3144.5,3144.0,0.1435]
[1763258799311,0.2447,3144.0,3143.9,0.00743392]
[1763258799618,15.8437,3144.0,3143.9,0.00743392]
[1763258800508,15.6987,3144.0,3143.9,0.00743392]
[1763258801013,15.6987,3144.0,3143.9,0.23543392]
[1763258801609,15.454,3144.0,3143.9,0.23543392]
[1763258801915,15.6987,3144.0,3143.9,0.23543392]
[1763258802214,15.6987,3144.0,3143.9,0.00743392]
[1763258803415,15.454,3144.0,3143.9,0.23543392]
[1763258806810,0.84986377,3144.4,3144.3,0.228]
[1763258807008,1.09456377,3144.4,3144.3,0.228]
[1763258807314,0.2447,3144.1,3144.0,0.1435]
[1763258808019,0.2447,3144.1,3143.9,0.00743392]
[1763258808020,0.2447,3144.0,3143.9,0.00743392]
[1763258808318,0.2447,3144.0,3143.9,0.23543392]
[1763258810227,3.2078,3144.1,3144.0,0.3715]
[1763258810519,3.4525,3144.1,3144.0,0.3715]
[1763258811726,3.4525,3144.1,3144.0,0.1435]
[1763258811924,0.2447,3144.0,3143.9,0.00743392]
[1763258813324,0.2447,3144.0,3143.9,0.23543392]
[1763258813820,0.2447,3144.0,3143.9,0.00743392]
[1763258817222,0.2447,3144.0,3143.9,0.23543392]
[1763258817728,18.6608,3144.1,3144.0,0.3715]
[1763258819433,19.74605093,3144.1,3144.0,0.3715]
[1763258820531,16.53825093,3144.1,3144.0,0.3715]
[1763258822329,16.53825093,3144.1,3144.0,0.1435]
[1763258822534,0.2352,3144.0,3143.9,0.00743392]
[1763258823738,4.29305093,3144.0,3143.9,0.00743392]
[1763258825022,4.29305093,3144.0,3143.7,0.03181016]
[1763258825226,0.2352,3143.4,3143.3,3.2078]
[1763258825423,15.5307,3143.4,3143.3,3.2078]
[1763258826128,0.0797,3143.1,3142.9,3.2078]
[1763258826330,15.5307,3143.1,3142.9,3.2078]
[1763258826516,15.5307,3143.1,3143.0,0.36861742]
[1763258827722,15.451,3143.1,3143.0,0.36861742]
[1763258827931,0.38740053,3143.4,3143.3,0.2276]
[1763258828240,1.13430691,3143.6,3143.3,0.2276]
[1763258828241,0.0797,3143.6,3143.5,0.143]
[1763258828429,0.0797,3143.6,3143.5,0.3706]
[1763258828622,13.464,3143.7,3143.5,0.3706]
[1763258828832,13.464,3143.7,3143.6,0.2276]
[1763258829428,13.5437,3143.7,3143.6,0.2276]
[1763258829935,13.464,3143.7,3143.6,0.2276]
[1763258830234,0.0797,3143.6,3143.5,0.143]
[1763258830531,0.0797,3143.6,3143.5,0.3706]
[1763258832223,3.2875,3143.6,3143.0,0.14101742]
[1763258832427,3.2875,3143.6,3143.0,0.36861742]
[1763258832428,0.0797,3143.1,3143.0,0.36861742]
[1763258832640,15.451,3143.2,3143.1,0.2276]
[1763258833232,18.6588,3143.6,3143.5,0.3712]
[1763258834032,18.7377,3143.6,3143.5,0.3712]
[1763258834229,18.7377,3143.6,3143.5,0.1436]
[1763258834435,18.7377,3143.6,3143.0,0.14101742]
[1763258834832,0.0789,3143.1,3143.0,0.39111742]
[1763258837135,15.5299,3143.2,3143.1,0.2501]
[1763258838741,15.451,3143.2,3143.1,0.2501]
[1763258840042,15.5299,3143.2,3143.1,0.2501]
[1763258842344,0.0789,3143.1,3143.0,0.14101742]
[1763258842840,0.0789,3143.1,3143.0,0.39111742]
[1763258843837,15.451,3143.2,3143.1,0.2501]
[1763258844043,15.5299,3143.2,3143.1,0.2501]
[1763258844429,15.451,3143.2,3143.1,0.2501]
[1763258844744,15.5299,3143.2,3143.1,0.2501]
[1763258845548,0.0789,3143.1,3143.0,0.39111742]
[1763258845938,15.451,3143.2,3143.1,0.2501]
[1763258847139,3.2078,3143.6,3143.5,0.3937]
[1763258849552,3.2867,3143.6,3143.5,0.3937]
[1763258849949,1.13430691,3144.0,3143.9,0.2396]
[1763258850247,3.2866,3144.1,3144.0,0.1502]
[1763258850751,0.0788,3144.1,3144.0,0.1502]
[1763258852039,0.0788,3143.1,3143.0,3.58841742]
[1763258852243,15.449,3143.5,3143.4,0.2396]
[1763258852650,15.449,3143.9,3143.8,0.2396]
[1763258853450,19.7927107,3144.2,3144.1,0.2396]
[1763258854547,18.6568,3144.2,3144.1,0.2396]
[1763258854848,18.6568,3144.2,3143.5,0.1502]
[1763258855042,19.7927107,3144.2,3143.5,0.1502]
[1763258855244,19.7927107,3144.2,3143.5,0.3898]
[1763258855945,1.1359107,3144.1,3144.0,0.1502]
[1763258856145,1.1359107,3144.1,3143.5,0.1502]
[1763258856346,18.6568,3144.2,3143.5,0.1502]
[1763258856347,1.1359107,3144.0,3143.5,0.3898]
[1763258858156,1.1359107,3144.1,3143.5,0.3898]
[1763258858354,1.1359107,3144.1,3144.0,0.1502]
[1763258859254,1.1359107,3144.1,3143.5,0.1502]
[1763258860455,1.1359107,3144.1,3143.5,0.3898]
[1763258863058,1.1359107,3144.1,3144.0,0.1502]
[1763258863360,1.1359107,3144.1,3143.5,0.1502]
[1763258864461,1.1359107,3144.1,3144.0,0.1502]
[1763258864759,1.1359107,3144.1,3144.0,0.3898]
[1763258864950,1.1359107,3144.1,3144.0,0.1502]
[1763258867065,1.1359107,3144.1,3144.0,0.3898]
[1763258867866,19.7927107,3144.2,3144.1,0.2396]
[1763258868160,18.6538,3144.2,3144.1,0.2396]
[1763258868962,18.6538,3144.2,3144.0,0.1502]
[1763258869165,18.6538,3144.2,3144.0,0.3898]
[1763258869764,3.2078,3144.2,3144.1,0.2396]
[1763258869969,0.00476455,3144.6,3144.5,0.3898]
[1763258871158,0.00805805,3144.6,3144.5,0.3898]
[1763258873570,1.70375111,3145.5,3145.3,0.2396]
[1763258873571,1.1359107,3145.4,3145.3,0.2396]
[1763258873771,2.27166815,3145.9,3145.0,0.1502]
[1763258873772,0.0081,3145.8,3145.7,0.2396]
[1763258874671,0.01181303,3145.8,3145.7,0.24183184]
[1763258875070,0.01181303,3145.8,3145.7,0.00223184]
[1763258876068,0.01181303,3145.8,3145.7,0.24183184]
[1763258876773,0.00371303,3145.8,3145.7,0.24183184]
[1763258877172,0.01181303,3145.8,3145.7,0.24183184]
[1763258877478,0.01181303,3145.8,3145.7,0.00223184]
[1763258880877,0.0058,3145.1,3145.0,3.358]
[1763258881066,15.44,3145.2,3145.1,0.243]
[1763258881375,0.0058,3145.1,3145.0,3.358]
[1763258881772,0.0058,3145.1,3145.0,3.3469]
[1763258882079,0.0058,3145.1,3145.0,3.34997122]
[1763258882577,3.2136,3145.1,3145.0,0.00307122]
[1763258885283,3.2136,3145.1,3145.0,0.14217122]
[1763258888176,3.2078,3145.5,3145.4,0.243]
[1763258888375,13.9236,3145.5,3145.4,0.243]
[1763258888573,13.9178,3145.5,3145.4,0.243]
[1763258888981,3.2078,3145.5,3145.4,0.243]
[1763258889173,0.00371303,3145.8,3145.7,0.243]
[1763258890278,0.00951303,3145.8,3145.7,0.243]
[1763258892784,0.00371303,3145.8,3145.7,0.243]
[1763258894773,4.05588065,3146.4,3146.0,0.3747]
[1763258894973,19.49188065,3146.8,3146.7,0.2299]
[1763258895181,19.50378065,3146.8,3146.7,0.2299]
[1763258895681,19.50378065,3146.8,3146.5,0.3747]
[1763258895682,0.0119,3146.6,3146.5,0.3747]
[1763258895879,0.01558544,3146.6,3146.5,0.3747]
[1763258896081,0.01558544,3146.6,3146.5,0.1448]
[1763258896585,0.01558544,3146.6,3146.5,0.3747]
[1763258897083,0.0119,3146.3,3146.2,0.00477221]
[1763258897289,0.0119,3146.3,3146.2,0.23467221]
[1763258897486,15.4469,3146.3,3146.2,0.00477221]
[1763258897986,15.4469,3146.3,3146.2,0.23467221]
[1763258898581,15.4469,3146.3,3146.2,0.00477221]
[1763258901481,0.0119,3145.7,3145.6,3.2078]
[1763258902084,0.0071,3145.3,3145.2,3.4377]
[1763258903093,0.0071,3145.3,3145.2,3.2078]
[1763258903394,0.0071,3145.1,3145.0,0.14217122]
[1763258903595,15.4401,3145.1,3145.0,0.14217122]
[1763258904286,15.4401,3145.1,3145.0,0.37207122]
[1763258904691,15.433,3145.1,3145.0,0.37207122]
[1763258905186,0.84912822,3145.4,3145.3,0.2299]
[1763258905386,16.28922822,3145.4,3145.3,0.2299]
[1763258906492,16.28212822,3145.4,3145.3,0.2299]
[1763258907085,15.433,3145.4,3145.3,0.2299]
[1763258909392,15.4401,3145.4,3145.3,0.2299]
[1763258911395,15.433,3145.4,3145.3,0.2299]
[1763258912486,15.433,3145.4,3145.3,3.4377]
[1763258912684,15.4382,3145.4,3145.3,3.2078]
[1763258913091,15.4382,3145.4,3145.3,3.4528]
[1763258914195,15.433,3145.4,3145.3,3.4528]
[1763258915192,15.4382,3145.4,3145.3,3.4528]
[1763258915392,15.4382,3145.4,3145.3,3.2078]
[1763258916082,15.4382,3145.4,3145.3,3.4528]
[1763258916583,15.433,3145.4,3145.3,3.4528]
[1763258917293,1.70375111,3146.3,3145.5,0.1473]
[1763258917593,0.00477221,3146.9,3146.2,4.35137527]
[1763258917793,0.00477221,3146.9,3146.5,0.85502923]
[1763258918188,0.141,3146.5,3146.4,0.85502923]
[1763258918589,0.141,3146.5,3146.4,6.85502923]
[1763258919798,0.00477221,3146.9,3146.4,6.85502923]
[1763258919997,0.00477221,3146.9,3146.4,0.85502923]
[1763258920200,0.00477221,3146.9,3146.3,0.85502923]
[1763258921684,0.00477221,3146.9,3146.4,6.0]
[1763258921896,0.00477221,3146.9,3146.5,0.85502923]
[1763258923294,0.00477221,3146.9,3146.4,0.85502923]
[1763258924395,0.00477221,3146.9,3146.5,6.0]
[1763258924699,3.2078,3148.1,3146.5,6.0]
[1763258924894,3.2078,3148.1,3147.4,3.2078]
[1763258925196,3.2078,3148.1,3147.1,0.85185999]
[1763258925197,3.3488,3148.5,3147.9,3.2078]
[1763258925595,0.14577221,3148.5,3147.9,3.21504827]
[1763258925795,0.141,3148.0,3147.9,3.21504827]
[1763258926701,0.14427019,3148.0,3147.9,3.21504827]
[1763258929207,0.00327019,3148.0,3147.9,3.21504827]
[1763258929597,0.14427019,3148.0,3147.9,3.21504827]
[1763258931104,0.14577221,3148.5,3147.9,3.21504827]
[1763258931308,0.14577221,3148.5,3148.3,3.2078]
[1763258932207,0.14959337,3148.5,3148.3,3.2078]
[1763258937911,0.2312,3148.4,3148.3,3.2078]
[1763258938516,0.14959337,3148.5,3148.3,3.2078]
[1763258939607,0.2515,3148.4,3148.3,3.2078]
[1763258940105,0.14959337,3148.5,3148.3,3.2078]
[1763258940310,0.0346,3148.7,3148.3,3.2078]
[1763258940506,0.141,3150.0,3148.4,6.0]
[1763258940707,0.141,3150.0,3149.4,3.2078]
[1763258940910,0.1503,3150.5,3149.8,3.2078]
[1763258941314,0.1503,3150.5,3150.3,3.2078]
[1763258941614,0.15737885,3150.5,3150.3,3.21094422]
[1763258942410,0.15737885,3150.5,3150.3,0.00314422]
[1763258942619,0.15737885,3150.5,3150.3,3.21094422]
[1763258944422,0.1503,3151.0,3150.4,15.428]
[1763258944715,0.1503,3151.5,3150.9,3.2078]
[1763258945520,0.15892978,3151.5,3150.9,3.2078]
[1763258945723,0.1503,3151.0,3150.9,3.2078]
[1763258948020,0.4018,3151.0,3150.9,3.2078]
[1763258948626,0.1503,3151.0,3150.9,3.2078]
[1763258949027,0.4018,3151.0,3150.9,3.2078]
[1763258949826,0.1503,3151.0,3150.9,3.2078]
[1763258950723,0.15892978,3151.5,3150.9,3.2078]
[1763258950934,0.15892978,3151.5,3151.4,3.2078]
[1763258951128,0.41042978,3151.5,3151.4,3.2078]
[1763258951431,0.15892978,3151.5,3151.4,3.2078]
[1763258953728,0.1503,3152.5,3151.4,13.2198]
[1763258953929,0.1503,3152.5,3152.2,3.2078]
[1763258954935,0.15275346,3152.5,3152.2,3.2078]
[1763258958834,0.00474387,3152.7,3152.2,3.2078]
[1763258959033,4.387e-05,3152.7,3152.6,3.2078]
[1763258959932,0.1503,3153.0,3152.6,3.21088556]
[1763258961033,0.15258839,3153.0,3152.6,3.21088556]
[1763258961539,0.00228839,3153.0,3152.6,3.21088556]
[1763258961839,0.14648839,3153.0,3152.6,3.21088556]
[1763258962041,0.00228839,3153.0,3152.6,3.21088556]
[1763258962339,0.0346,3153.7,3152.7,6.0]
[1763258962541,0.1442,3154.5,3153.6,3.2078]
[1763258962836,0.1442,3154.5,3154.4,3.2078]
[1763258963137,0.1442,3155.5,3154.4,3.2078]
[1763258963338,0.14664518,3155.0,3154.9,3.2078]
[1763258963536,0.37724518,3155.0,3154.9,3.21147195]
[1763258963737,0.14664518,3155.0,3154.9,3.21147195]
[1763258965241,0.00244518,3155.0,3154.9,3.21147195]
[1763258966340,0.14664518,3155.0,3154.9,3.21147195]
[1763258967249,0.00244518,3155.0,3154.9,3.21147195]
[1763258967447,4.518e-05,3155.0,3154.9,3.21147195]
[1763258969247,0.14734518,3155.0,3154.9,3.21147195]
[1763258970151,4.518e-05,3155.0,3154.9,9.21147195]
[1763258970450,4.518e-05,3155.0,3154.9,3.21147195]
[1763258972948,0.1442,3156.0,3154.9,9.21147195]
[1763258973144,0.1442,3156.0,3155.9,3.2078]
[1763258973450,0.3872,3156.0,3155.9,3.2078]
[1763258973838,0.14762054,3156.0,3155.9,3.2078]
[1763258975542,0.00342054,3156.0,3155.9,3.2078]
[1763258975854,0.15072054,3156.0,3155.9,3.2078]
[1763258976252,2.054e-05,3156.0,3155.9,3.2078]
[1763258976456,0.1442,3156.5,3155.9,3.2078]
[1763258976649,0.1442,3156.5,3156.4,3.2078]
[1763258976848,0.3872,3156.5,3156.4,3.2078]
[1763258977351,6.39074563,3156.5,3156.4,3.2078]
[1763258977547,0.243,3156.1,3155.6,0.00475646]
[1763258977749,0.1473,3156.0,3155.6,0.00475646]
[1763258978144,0.243,3155.7,3155.6,0.00475646]
[1763258978654,0.1473,3156.0,3155.6,0.00475646]
[1763258978854,0.243,3155.7,3155.6,0.00475646]
[1763258979159,0.1473,3156.0,3155.6,0.00475646]
[1763258979346,0.243,3155.8,3155.7,3.2078]
[1763258979951,0.1473,3156.0,3155.7,3.2078]
[1763258980748,0.00354563,3156.5,3155.7,9.2078]
[1763258980947,0.00354563,3156.5,3156.4,3.2078]
[1763258981859,0.1473,3157.0,3156.4,3.2078]
[1763258982156,0.3903,3157.0,3156.9,3.2078]
[1763258982360,0.1473,3157.0,3156.9,3.2078]
[1763258982860,0.1473,3158.0,3156.9,9.2078]
[1763258983051,0.1473,3158.0,3157.4,3.2078]
[1763258983654,0.1473,3158.0,3157.8,3.2078]
[1763258983851,0.15049604,3158.0,3157.8,3.21177587]
[1763258984251,0.243,3157.9,3157.8,3.21177587]
[1763258984660,0.15049604,3158.0,3157.8,3.21177587]
[1763258985860,0.00319604,3158.0,3157.8,3.21177587]
[1763258986063,0.15049604,3158.0,3157.8,3.21177587]
[1763258986655,0.243,3157.9,3157.8,3.21177587]
[1763258987455,0.3903,3157.5,3157.4,0.00475646]
[1763258987758,3.35829604,3158.0,3157.4,0.23935646]
[1763258988556,3.35829604,3158.0,3157.4,0.00847336]
[1763258988753,0.3903,3157.5,3157.4,0.00847336]
[1763258989266,3.35829604,3158.0,3157.4,0.24307336]
[1763258989466,0.15049604,3158.0,3157.4,0.24307336]
[1763258990162,0.243,3157.5,3157.4,0.00847336]
[1763258990363,0.3903,3157.5,3157.4,0.00847336]
[1763258991766,0.3903,3157.5,3156.9,3.2078]
[1763258991767,0.3903,3157.0,3156.9,3.2078]
[1763258992361,0.243,3156.6,3156.5,3.2078]
[1763258992765,0.243,3156.6,3156.5,3.21175433]
[1763258993156,0.243,3156.6,3156.5,0.00395433]
[1763258994863,0.00473029,3156.9,3156.5,0.23855433]
[1763258996858,0.00473029,3156.9,3156.8,0.2346]
[1763258998172,0.24773029,3156.9,3156.8,0.2346]
[1763258998471,0.24773029,3156.9,3156.5,3.21175433]
[1763258998669,0.00473029,3156.9,3156.8,0.2405]
[1763258999970,0.24113029,3156.9,3156.5,3.21175433]
[1763259000172,0.24113029,3156.9,3156.8,0.2405]
[1763259000560,0.00473029,3156.9,3156.8,0.2405]
[1763259001270,0.00473029,3156.9,3156.5,3.45225433]
[1763259001474,0.00473029,3156.9,3156.8,0.2405]
[1763259002570,0.2364,3156.6,3156.5,3.21175433]
[1763259002874,0.00473029,3156.9,3156.5,3.45225433]
[1763259003076,0.2364,3156.6,3156.5,3.21175433]
[1763259004072,0.2364,3156.6,3156.5,3.45225433]
[1763259004260,0.00473029,3156.9,3156.8,0.2405]
[1763259004460,0.2364,3156.6,3156.5,3.21175433]
[1763259005667,0.00473029,3156.9,3156.5,3.45225433]
[1763259005971,0.2364,3156.6,3156.5,0.00395433]
[1763259007176,0.00473029,3156.9,3156.5,3.45225433]
[1763259007372,0.00473029,3156.9,3156.8,0.2405]
[1763259009062,0.00473029,3156.9,3156.5,3.34025433]
[1763259009268,0.00473029,3156.9,3156.5,3.21175433]
[1763259010371,0.00473029,3156.9,3156.8,0.2405]
[1763259010571,0.00473029,3156.9,3156.6,0.85185999]
[1763259011777,0.00473029,3156.9,3156.8,0.2405]
[1763259012075,0.00473029,3156.9,3156.8,1.09235999]
[1763259012577,3.2078,3157.5,3157.4,0.2405]
[1763259013072,3.5826,3157.5,3157.2,0.85185999]
[1763259013576,3.3462,3157.5,3157.2,1.10055999]
[1763259013870,3.2078,3157.5,3157.4,0.2487]
[1763259014066,3.4442,3157.5,3157.1,0.85185999]
[1763259014262,3.4442,3157.5,3157.4,0.2487]
[1763259014591,3.2078,3157.9,3157.4,0.2487]
[1763259014875,0.00319604,3158.0,3157.9,0.2487]
[1763259016874,0.0346,3158.7,3158.0,0.1292]
[1763259017075,0.0346,3158.7,3158.2,3.2078]
[1763259017671,0.0346,3158.7,3158.6,0.2487]
[1763259017878,0.271,3158.7,3158.6,0.2487]
[1763259018071,0.27401409,3158.7,3158.6,0.2487]
[1763259018273,0.27401409,3158.7,3158.2,3.2078]
[1763259019279,0.03761409,3158.7,3158.6,0.2487]
[1763259019470,0.03761409,3158.7,3158.6,3.4565]
[1763259019671,3.3462,3159.5,3158.6,4.59231332]
[1763259019872,3.3462,3159.5,3158.8,0.8478963]
[1763259020068,3.2078,3159.5,3159.0,3.2078]
[1763259020381,3.2078,3159.5,3159.4,0.2487]
[1763259020567,3.2078,3159.9,3159.4,0.2487]
[1763259020874,3.2078,3160.3,3160.2,0.2487]
[1763259021075,3.2078,3160.3,3159.9,0.00474885]
[1763259021579,3.2078,3160.3,3160.2,0.2487]
[1763259021876,3.44803303,3160.3,3159.9,0.00474885]
[1763259022176,0.3748,3160.0,3159.9,0.00474885]
[1763259022680,3.21163303,3160.3,3159.9,0.25344885]
[1763259022877,0.3748,3160.0,3159.9,0.00474885]
[1763259023971,3.21163303,3160.3,3159.9,0.25344885]
[1763259024583,0.00383303,3160.3,3159.9,3.46124885]
[1763259025084,0.00383303,3160.3,3159.9,0.25344885]
[1763259025290,0.3748,3160.0,3159.9,0.00474885]
[1763259026190,3.5826,3160.0,3159.9,0.00474885]
[1763259026885,0.3748,3159.5,3159.4,0.00326918]
[1763259027080,3.5826,3159.5,3159.4,0.00326918]
[1763259028474,0.232,3159.2,3159.1,0.00474885]
[1763259028880,6.232,3159.2,3159.1,0.00474885]
[1763259029184,6.232,3159.2,3158.2,3.2078]
[1763259029185,0.232,3158.8,3158.2,3.2078]
[1763259029588,0.232,3158.8,3158.2,3.21071596]
[1763259030191,0.23674885,3158.8,3158.2,3.21546481]
[1763259030589,0.00474885,3158.8,3158.7,0.2365]
[1763259031286,0.232,3158.7,3158.2,3.21546481]
[1763259031483,0.00474885,3158.8,3158.7,0.2365]
[1763259032184,0.23674885,3158.8,3158.2,3.21546481]
[1763259033180,0.00474885,3158.8,3158.7,0.2365]
[1763259037488,3.2078,3159.9,3159.8,0.2365]
[1763259039297,0.0047235,3160.2,3159.8,0.2365]
[1763259039693,0.232,3159.9,3159.7,3.2078]
[1763259039893,0.232,3159.8,3159.3,3.2078]
[1763259040198,0.0047235,3160.2,3159.8,0.2365]
[1763259040598,0.2367235,3160.2,3160.1,0.2365]
[1763259041294,0.0047235,3160.2,3160.1,0.2365]
[1763259042093,0.0047235,3160.2,3160.1,3.4443]
[1763259042601,0.0047235,3160.2,3160.1,0.2365]
[1763259042791,0.0047235,3160.2,3160.1,3.4443]
[1763259043187,3.2078,3161.2,3161.1,0.2365]
[1763259043392,3.4398,3161.2,3160.6,3.2078]
[1763259044298,3.44246339,3161.2,3160.6,3.21064475]
[1763259044797,3.44246339,3161.2,3161.1,0.2365]
[1763259044798,0.00266339,3161.2,3161.1,0.2365]
[1763259045296,5.51681671,3164.3,3161.8,3.2078]
[1763259045595,0.1367,3165.0,3164.2,3.2078]
[1763259045801,0.1367,3165.0,3163.3,2.27880707]
[1763259045802,0.1367,3165.0,3164.9,1.12222356]
[1763259046000,0.3687,3165.0,3164.9,1.96550192]
[1763259046299,10.30846211,3165.0,3164.9,0.00396067]
[1763259046597,0.232,3164.3,3164.2,1.12222356]
[1763259046895,0.1367,3164.0,3163.9,0.00473919]
[1763259047101,0.51239,3163.7,3163.0,2.27880707]
[1763259047294,0.1367,3163.3,3162.8,3.2078]
[1763259047693,0.1367,3163.3,3162.8,3.21189485]
[1763259048093,3.24975786,3163.3,3162.8,3.21189485]
[1763259048394,0.232,3162.9,3162.8,0.00409485]
[1763259048894,3.34505786,3162.9,3162.8,0.00409485]
[1763259049098,0.51262,3162.3,3162.0,3.2078]
[1763259049395,0.51265,3162.2,3162.0,2.55869487]
[1763259049598,0.1367,3161.9,3161.5,3.2078]
[1763259049792,0.5127,3161.8,3161.5,3.2078]
[1763259049991,3.72053,3161.6,3161.5,0.00401842]
[1763259050598,6.82884867,3161.6,3161.5,0.00401842]
[1763259051400,0.1367,3161.2,3160.7,3.2078]
[1763259051601,0.0036997,3161.8,3159.8,0.24861684]
[1763259051602,0.0036997,3161.8,3161.1,3.2078]
[1763259051993,3.10326076,3161.8,3161.1,3.2078]
[1763259052197,3.09956106,3161.7,3161.1,3.2078]
[1763259052399,3.10430025,3161.7,3161.1,3.2159348]
[1763259052896,3.09956106,3161.6,3161.1,3.2159348]
[1763259053100,0.1367,3161.2,3161.1,3.2159348]
[1763259053598,3.23626106,3161.2,3161.1,3.2159348]
[1763259054000,3.23626106,3161.2,3161.1,0.0081348]
[1763259054205,3.46826106,3161.2,3161.1,0.0081348]
[1763259054904,0.1367,3160.5,3160.2,3.2078]
[1763259055401,3.09142626,3160.4,3160.2,3.2078]
[1763259055906,3.09142626,3160.4,3160.2,3.21094985]
[1763259056294,3.09142626,3160.3,3160.2,3.21094985]
[1763259056494,3.32342626,3160.3,3160.2,0.00314985]
[1763259058704,0.401,3159.8,3159.0,3.2078]
[1763259059012,0.51304,3159.7,3159.0,3.2078]
[1763259059305,3.59972707,3159.7,3159.1,0.804022]
[1763259059614,3.08668707,3159.6,3159.2,0.804022]
[1763259059811,3.08668707,3159.6,3159.1,0.00821362]